fUSD/lending_fUSD_20250111
["ID","MTS","AMOUNT","RATE_DAILY","PERIOD"]
[348563834,1736620264798,-500.0,0.00011536,2]
[348563835,1736620264807,-500.0,0.00011536,2]
[348563836,1736620264817,-500.0,0.00011536,2]
[348563837,1736620264827,-500.0,0.00011536,2]
[348563838,1736620264836,-500.0,0.00011536,2]
[348563839,1736620264845,-500.0,0.00011536,2]
[348563840,1736620264855,-500.0,0.00011536,2]
[348563841,1736620264864,-500.0,0.00011536,2]
[348563842,1736620264874,-500.0,0.00011536,2]
[348563843,1736620264884,-500.0,0.00011536,2]
[348563844,1736620264893,-265.96,0.00011536,2]
[348563845,1736620264903,-462.4,0.00011536,2]
[348563846,1736620264912,-500.0,0.00011536,2]
[348563847,1736620264924,-500.0,0.00011536,2]
[348563848,1736620264933,-500.0,0.00011536,2]
[348563849,1736620264943,-431.76,0.00011536,2]
[348563850,1736620264952,-500.0,0.00011536,2]
[348563851,1736620264962,-500.0,0.00011536,2]
[348563852,1736620264971,-540.54,0.00011536,2]
[348563853,1736620264980,-612.39,0.00011536,2]
[348563854,1736620264990,-500.0,0.00011536,2]
[348563855,1736620265000,-500.0,0.00011536,2]
[348563856,1736620265009,-500.0,0.00011536,2]
[348563857,1736620265018,-500.0,0.00011536,2]
[348563858,1736620265027,-703.64,0.00011536,2]
[348563859,1736620265037,-274.08,0.00011536,2]
[348563860,1736620265046,-500.0,0.00011536,2]
[348563861,1736620265056,-500.0,0.00011536,2]
[348563862,1736620265065,-500.0,0.00011536,2]
[348563863,1736620265074,-1024.51,0.00011536,2]
[348563864,1736620265084,-1100.94,0.00011537,2]
[348563865,1736620265095,-1523.13,0.00011537,2]
[348563866,1736620265104,-926.27,0.00011537,2]
[348563867,1736620265114,-1703.67,0.00011537,2]
[348563868,1736620265123,-1794.24,0.00011537,2]
[348563869,1736620265133,-2156.82,0.00011537,2]
[348563870,1736620265142,-1820.4,0.00011537,2]
[348563871,1736620265152,-2988.31,0.00011537,2]
[348563872,1736620265161,-1199.45,0.00011537,2]
[348563873,1736620265173,-1212.35,0.00011537,2]
[348563874,1736620265182,-944.58,0.00011537,2]
[348563875,1736620265191,-1372.48,0.00011537,2]
[348563876,1736620265201,-1189.63,0.00011537,2]
[348563877,1736620265210,-708.76,0.00011537,2]
[348563878,1736620265220,-2583.19,0.00011537,2]
[348563879,1736620265230,-500.0,0.00011539,2]
[348563880,1736620265243,-251.89450797,0.00011539,2]
[348563881,1736620265252,-394.72652775,0.00011539,2]
[348563882,1736620265262,-500.0,0.00011539,2]
[348563883,1736620265272,-500.0,0.00011539,2]
[348563884,1736620265282,-331.02595271,0.00011539,2]
[348563885,1736620265292,-500.0,0.00011539,2]
[348563886,1736620265301,-606.19,0.00011574,2]
[348563887,1736620265311,-287.21,0.00011635,2]
[348563888,1736620265320,-500.0,0.00011635,2]
[348563889,1736620265329,-500.0,0.00011635,2]
[348563890,1736620265338,-500.0,0.00011635,2]
[348563891,1736620265347,-500.0,0.00011635,2]
[348563892,1736620265356,-500.0,0.00011635,2]
[348563893,1736620265365,-500.0,0.00011635,2]
[348563894,1736620265374,-500.0,0.00011635,2]
[348563895,1736620265383,-500.0,0.00011635,2]
[348563896,1736620265393,-500.0,0.00011635,2]
[348563897,1736620265402,-500.0,0.00011635,2]
[348563898,1736620265412,-500.0,0.00011635,2]
[348563899,1736620265423,-500.0,0.00011635,2]
[348563900,1736620265432,-500.0,0.00011635,2]
[348563901,1736620265442,-500.0,0.00011635,2]
[348563902,1736620265451,-500.0,0.00011635,2]
[348563903,1736620265461,-500.0,0.00011635,2]
[348563904,1736620265471,-500.0,0.00011635,2]
[348563905,1736620265480,-500.0,0.00011635,2]
[348563906,1736620265490,-500.0,0.00011635,2]
[348563907,1736620265500,-500.0,0.00011635,2]
[348563908,1736620265509,-500.0,0.00011635,2]
[348563909,1736620265519,-500.0,0.00011635,2]
[348563910,1736620265528,-536.99875418,0.00011635,2]
[348563911,1736620265538,-500.0,0.00011635,2]
[348563912,1736620265548,-500.0,0.00011635,2]
[348563913,1736620265557,-500.0,0.00011635,2]
[348563914,1736620265567,-500.0,0.00011636,2]
[348563915,1736620265576,-500.0,0.00011636,2]
[348563916,1736620265586,-287.93,0.00011636,2]
[348563917,1736620265596,-1284.37,0.00011636,2]
[348563918,1736620265606,-1781.7,0.00011636,2]
[348563919,1736620265615,-915.17,0.00011636,2]
[348563920,1736620265625,-897.57,0.00011636,2]
[348563921,1736620265635,-208.76349431,0.00011637,2]
[348563922,1736620265644,-500.0,0.00011637,2]
[348563923,1736620265653,-318.19,0.00011638,2]
[348563924,1736620265663,-500.0,0.00011638,2]
[348563925,1736620265672,-500.0,0.00011638,2]
[348563926,1736620265682,-921.38,0.00011638,2]
[348563927,1736620265690,-726.25,0.00011638,2]
[348563928,1736620265700,-1623.08,0.00011638,2]
[348563929,1736620265709,-527.84,0.00011638,2]
[348563930,1736620265719,-1062.89,0.00011638,2]
[348563931,1736620265728,-1566.04,0.00011638,2]
[348563932,1736620265737,-6943.01,0.00011638,2]
[348563933,1736620265747,-500.0,0.00011638,2]
[348563934,1736620265756,-523.34,0.00011638,2]
[348563935,1736620265765,-1589.16,0.00011638,2]
[348563936,1736620265774,-500.0,0.00011638,2]
[348563937,1736620265783,-774.86,0.00011638,2]
[348563938,1736620265792,-1100.64,0.00011638,2]
[348563939,1736620265802,-721.14,0.00011638,2]
[348563940,1736620265812,-1579.79,0.00011638,2]
[348563941,1736620265821,-1314.67,0.00011638,2]
[348563942,1736620265830,-999.19,0.00011638,2]
[348563943,1736620265840,-8469.98920169,0.00011672,2]
[348563944,1736620265850,-820.0,0.00011676,2]
[348563945,1736620265859,-915.0,0.00011676,2]
[348563946,1736620265868,-2944.0,0.00011676,2]
[348563947,1736620265877,-810.124,0.00011676,2]
[348563948,1736620265887,-3978.0,0.00011676,2]
[348563949,1736620265896,-537.0,0.00011676,2]
[348563950,1736620265906,-3896.0,0.00011676,2]
[348563951,1736620265919,-151.0,0.00011676,2]
[348563952,1736620265930,-150.0,0.00011676,2]
[348563953,1736620265939,-211.554,0.0001168,2]
[348563954,1736620265949,-208.76349431,0.00011795,2]
[348563955,1736620265958,-11490.0,0.000118,5]
[348563956,1736620265967,-960.36,0.00011808,2]
[348563957,1736620265977,-696.05,0.00011808,2]
[348563958,1736620265987,-500.0,0.00011808,2]
[348563959,1736620265998,-1667.23,0.00011808,2]
[348563960,1736620266008,-2283.16,0.00011808,2]
[348563961,1736620266018,-3818.4,0.00011808,2]
[348563962,1736620266027,-2248.19,0.00011808,2]
[348563963,1736620266037,-1177.39,0.00011808,2]
[348563964,1736620266046,-716.54,0.00011808,2]
[348563965,1736620266056,-2715.96,0.00011808,2]
[348563966,1736620266065,-500.0,0.00011808,2]
[348563967,1736620266075,-500.0,0.00011808,2]
[348563968,1736620266084,-500.0,0.00011808,2]
[348563969,1736620266094,-500.0,0.00011808,2]
[348563970,1736620266104,-684.54,0.00011808,2]
[348563971,1736620266114,-761.21,0.00011808,2]
[348563972,1736620266125,-500.0,0.00011808,2]
[348563973,1736620266136,-500.0,0.00011809,2]
[348563974,1736620266146,-672.05,0.00011809,2]
[348563975,1736620266155,-500.0,0.00011809,2]
[348563976,1736620266165,-500.0,0.00011809,2]
[348563977,1736620266175,-500.0,0.00011809,2]
[348563978,1736620266184,-500.0,0.00011809,2]
[348563979,1736620266193,-265.35338218,0.00011809,2]
[348563980,1736620266203,-500.0,0.00011809,2]
[348563981,1736620266213,-500.0,0.00011809,2]
[348563982,1736620266222,-500.0,0.00011809,2]
[348563983,1736620266233,-557.51,0.00011809,2]
[348563984,1736620266254,-576.99,0.00011809,2]
[348563985,1736620266268,-527.5,0.00011809,2]
[348563986,1736620266281,-671.41,0.00011809,2]
[348563987,1736620266293,-735.55,0.00011809,2]
[348563988,1736620266303,-500.0,0.00011809,2]
[348563989,1736620266312,-614.43,0.00011809,2]
[348563990,1736620266320,-687.44,0.00011809,2]
[348563991,1736620266330,-500.0,0.00011809,2]
[348563992,1736620266339,-733.21,0.00011809,2]
[348563993,1736620266349,-500.0,0.00011809,2]
[348563994,1736620266358,-1217.93,0.00011809,2]
[348563995,1736620266367,-500.0,0.00011809,2]
[348563996,1736620266378,-500.0,0.00011809,2]
[348563997,1736620266387,-500.0,0.00011809,2]
[348563998,1736620266396,-500.0,0.00011809,2]
[348563999,1736620266406,-1733.16,0.00011809,2]
[348564000,1736620266415,-500.0,0.00011809,2]
[348564001,1736620266425,-500.0,0.00011809,2]
[348564002,1736620266437,-500.0,0.00011809,2]
[348564003,1736620266446,-954.12,0.00011809,2]
[348564004,1736620266455,-233.92,0.00011809,2]
[348564005,1736620266464,-500.0,0.00011809,2]
[348564006,1736620266474,-217.120428,0.00011809,2]
[348564007,1736620266483,-622.38,0.00011809,2]
[348564008,1736620266493,-522.79,0.00011809,2]
[348564009,1736620266502,-2493.03,0.00011809,2]
[348564010,1736620266512,-500.0,0.00011809,2]
[348564011,1736620266522,-1215.65,0.00011809,2]
[348564012,1736620266531,-2849.11,0.00011809,2]
[348564013,1736620266540,-186.267351,0.00011809,2]
[348564014,1736620266550,-1952.06,0.00011809,2]
[348564015,1736620266559,-5755.78,0.00011809,2]
[348564016,1736620266568,-1304.79,0.00011809,2]
[348564017,1736620266577,-500.0,0.00011809,2]
[348564018,1736620266587,-500.0,0.00011809,2]
[348564019,1736620266596,-818.64,0.00011809,2]
[348564020,1736620266606,-587.15,0.00011809,2]
[348564021,1736620266615,-500.0,0.00011809,2]
[348564022,1736620266624,-506.69,0.00011809,2]
[348564023,1736620266634,-1028.71,0.00011809,2]
[348564024,1736620266643,-500.0,0.00011809,2]
[348564025,1736620266652,-3008.65,0.00011809,2]
[348564026,1736620266662,-500.0,0.00011809,2]
[348564027,1736620266672,-2939.45,0.00011809,2]
[348564028,1736620266682,-584.79,0.00011809,2]
[348564029,1736620266692,-500.0,0.00011809,2]
[348564030,1736620266701,-500.0,0.00011809,2]
[348564031,1736620266710,-2813.01,0.00011809,2]
[348564032,1736620266719,-500.0,0.00011809,2]
[348564033,1736620266728,-2066.76,0.00011809,2]
[348564034,1736620266738,-1001.95,0.00011809,2]
[348564035,1736620266747,-500.0,0.00011809,2]
[348564036,1736620266756,-500.0,0.00011809,2]
[348564037,1736620266766,-3166.08,0.00011809,2]
[348564038,1736620266775,-500.0,0.00011809,2]
[348564039,1736620266784,-2016.16,0.00011809,2]
[348564040,1736620266793,-500.0,0.00011809,2]
[348564041,1736620266803,-500.0,0.00011809,2]
[348564042,1736620266812,-1138.0,0.00011809,2]
[348564043,1736620266821,-500.0,0.00011809,2]
[348564044,1736620266830,-738.79,0.00011809,2]
[348564045,1736620266839,-500.0,0.0001181,2]
[348564046,1736620266848,-537.13,0.0001181,2]
[348564047,1736620266857,-500.0,0.0001181,2]
[348564048,1736620266866,-500.0,0.0001181,2]
[348564049,1736620266875,-500.0,0.0001181,2]
[348564050,1736620266884,-500.0,0.0001181,2]
[348564051,1736620266894,-500.0,0.0001181,2]
[348564052,1736620266903,-500.0,0.0001181,2]
[348564053,1736620266912,-500.0,0.0001181,2]
[348564054,1736620266922,-500.0,0.0001181,2]
[348564055,1736620266932,-500.0,0.0001181,2]
[348564056,1736620266941,-500.0,0.0001181,2]
[348564057,1736620266950,-500.0,0.0001181,2]
[348564058,1736620266959,-500.0,0.0001181,2]
[348564059,1736620266968,-500.0,0.0001181,2]
[348564060,1736620266977,-500.0,0.0001181,2]
[348564061,1736620266986,-265.24,0.0001181,2]
[348564062,1736620266996,-540.54,0.0001181,2]
[348564063,1736620267005,-612.39,0.0001181,2]
[348564064,1736620267014,-500.0,0.0001181,2]
[348564065,1736620267024,-500.0,0.0001181,2]
[348564066,1736620267033,-500.0,0.0001181,2]
[348564067,1736620267042,-703.64,0.0001181,2]
[348564068,1736620267051,-500.0,0.0001181,2]
[348564069,1736620267060,-500.0,0.0001181,2]
[348564070,1736620267070,-500.0,0.0001181,2]
[348564071,1736620267080,-1024.51,0.0001181,2]
[348564072,1736620267089,-1100.94,0.00011811,2]
[348564073,1736620267098,-1523.13,0.00011811,2]
[348564074,1736620267107,-926.27,0.00011811,2]
[348564075,1736620267116,-1703.67,0.00011811,2]
[348564076,1736620267125,-1794.24,0.00011811,2]
[348564077,1736620267134,-2156.82,0.00011811,2]
[348564078,1736620267143,-1820.4,0.00011811,2]
[348564079,1736620267152,-2988.31,0.00011811,2]
[348564080,1736620267161,-1199.45,0.00011811,2]
[348564081,1736620267170,-1212.35,0.00011811,2]
[348564082,1736620267180,-944.58,0.00011811,2]
[348564083,1736620267190,-1372.48,0.00011811,2]
[348564084,1736620267200,-1189.63,0.00011811,2]
[348564085,1736620267209,-708.76,0.00011811,2]
[348564086,1736620267219,-2583.19,0.00011811,2]
[348564087,1736620267228,-500.0,0.00011874,2]
[348564088,1736620267239,-2000.0,0.00011874,2]
[348564089,1736620267248,-500.0,0.00011874,2]
[348564090,1736620267257,-200.0,0.00011874,2]
[348564091,1736620267267,-2452.235,0.0001188,2]
[348564092,1736620267276,-152.027,0.0001188,2]
[348564093,1736620267285,-500.0,0.00011909,2]
[348564094,1736620267294,-292.8,0.00011909,2]
[348564095,1736620267303,-580.09,0.00011909,2]
[348564096,1736620267312,-500.0,0.00011909,2]
[348564097,1736620267321,-500.0,0.00011909,2]
[348564098,1736620267330,-500.0,0.00011909,2]
[348564099,1736620267339,-500.0,0.00011909,2]
[348564100,1736620267348,-500.0,0.00011909,2]
[348564101,1736620267357,-500.0,0.00011909,2]
[348564102,1736620267366,-500.0,0.00011909,2]
[348564103,1736620267376,-500.0,0.00011909,2]
[348564104,1736620267385,-500.0,0.00011909,2]
[348564105,1736620267394,-500.0,0.00011909,2]
[348564106,1736620267403,-500.0,0.00011909,2]
[348564107,1736620267412,-500.0,0.00011909,2]
[348564108,1736620267421,-500.0,0.00011909,2]
[348564109,1736620267431,-500.0,0.00011909,2]
[348564110,1736620267441,-500.0,0.00011909,2]
[348564111,1736620267450,-500.0,0.00011909,2]
[348564112,1736620267459,-500.0,0.00011909,2]
[348564113,1736620267468,-500.0,0.00011909,2]
[348564114,1736620267477,-500.0,0.00011909,2]
[348564115,1736620267487,-500.0,0.00011909,2]
[348564116,1736620267496,-500.0,0.00011909,2]
[348564117,1736620267505,-500.0,0.0001191,2]
[348564118,1736620267514,-1284.37,0.0001191,2]
[348564119,1736620267524,-1781.7,0.0001191,2]
[348564120,1736620267533,-915.17,0.0001191,2]
[348564121,1736620267542,-897.57,0.0001191,2]
[348564122,1736620267552,-1462.92,0.00011912,2]
[348564123,1736620267561,-620.0,0.00011912,2]
[348564124,1736620267570,-661.25,0.00011912,2]
[348564125,1736620267580,-500.0,0.00011912,2]
[348564126,1736620267589,-500.0,0.00011912,2]
[348564127,1736620267598,-921.38,0.00011912,2]
[348564128,1736620267607,-726.25,0.00011912,2]
[348564129,1736620267617,-1623.08,0.00011912,2]
[348564130,1736620267626,-1062.89,0.00011912,2]
[348564131,1736620267635,-1566.04,0.00011912,2]
[348564132,1736620267645,-6943.01,0.00011912,2]
[348564133,1736620267655,-500.0,0.00011912,2]
[348564134,1736620267664,-523.34,0.00011912,2]
[348564135,1736620267674,-1589.16,0.00011912,2]
[348564136,1736620267683,-500.0,0.00011912,2]
[348564137,1736620267693,-774.86,0.00011912,2]
[348564138,1736620267702,-1100.64,0.00011912,2]
[348564139,1736620267712,-721.14,0.00011912,2]
[348564140,1736620267721,-1579.79,0.00011912,2]
[348564141,1736620267730,-1314.67,0.00011912,2]
[348564142,1736620267740,-8469.98920169,0.00011926,2]
[348564143,1736620267750,-208.76349431,0.00011953,2]
[348564144,1736620267759,-50807.96698348,0.00011961,2]
[348564145,1736620267769,-38000.9533479,0.00012,2]
[348564146,1736620267779,-61610.66458197,0.00012,2]
[348564147,1736620267788,-600.66074425,0.00012,2]
[348564148,1736620267797,-150.0,0.0001202,2]
[348564149,1736620267807,-150.0,0.00012022,2]
[348564150,1736620267816,-150.0,0.00012029,2]
[348564151,1736620267826,-1500.0,0.00012035,2]
[348564152,1736620267835,-150.0,0.00012039,2]
[348564153,1736620267844,-150.0,0.0001204,2]
[348564154,1736620267854,-150.0,0.00012046,2]
[348564155,1736620267864,-150.0,0.0001205,2]
[348564156,1736620267874,-200.0,0.00012055,2]
[348564157,1736620267883,-150.0,0.00012064,2]
[348564158,1736620267892,-150.0,0.00012067,2]
[348564159,1736620267902,-960.36,0.00012082,2]
[348564160,1736620267911,-696.05,0.00012082,2]
[348564161,1736620267924,-500.0,0.00012082,2]
[348564162,1736620267934,-1667.23,0.00012082,2]
[348564163,1736620267945,-2283.16,0.00012082,2]
[348564164,1736620267955,-3818.4,0.00012082,2]
[348564165,1736620267965,-2248.19,0.00012082,2]
[348564166,1736620267974,-1177.39,0.00012082,2]
[348564167,1736620267983,-716.54,0.00012082,2]
[348564168,1736620267994,-2715.96,0.00012082,2]
[348564169,1736620268004,-500.0,0.00012082,2]
[348564170,1736620268013,-312.4817356,0.00012082,2]
[348564171,1736620268023,-500.0,0.00012082,2]
[348564172,1736620268032,-500.0,0.00012082,2]
[348564173,1736620268042,-684.54,0.00012082,2]
[348564174,1736620268052,-761.21,0.00012082,2]
[348564175,1736620268061,-500.0,0.00012082,2]
[348564176,1736620268071,-179.0,0.00012082,2]
[348564177,1736620268081,-170.0,0.00012082,2]
[348564178,1736620268090,-500.0,0.00012083,2]
[348564179,1736620268100,-672.05,0.00012083,2]
[348564180,1736620268110,-500.0,0.00012083,2]
[348564181,1736620268119,-500.0,0.00012083,2]
[348564182,1736620268129,-500.0,0.00012083,2]
[348564183,1736620268138,-500.0,0.00012083,2]
[348564184,1736620268148,-500.0,0.00012083,2]
[348564185,1736620268157,-557.51,0.00012083,2]
[348564186,1736620268167,-576.99,0.00012083,2]
[348564187,1736620268177,-527.5,0.00012083,2]
[348564188,1736620268187,-671.41,0.00012083,2]
[348564189,1736620268197,-735.55,0.00012083,2]
[348564190,1736620268206,-500.0,0.00012083,2]
[348564191,1736620268216,-614.43,0.00012083,2]
[348564192,1736620268226,-687.44,0.00012083,2]
[348564193,1736620268240,-500.0,0.00012083,2]
[348564194,1736620268249,-733.21,0.00012083,2]
[348564195,1736620268259,-500.0,0.00012083,2]
[348564196,1736620268269,-1217.93,0.00012083,2]
[348564197,1736620268280,-500.0,0.00012083,2]
[348564198,1736620268290,-500.0,0.00012083,2]
[348564199,1736620268300,-500.0,0.00012083,2]
[348564200,1736620268311,-500.0,0.00012083,2]
[348564201,1736620268321,-1733.16,0.00012083,2]
[348564202,1736620268330,-500.0,0.00012083,2]
[348564203,1736620268340,-500.0,0.00012083,2]
[348564204,1736620268351,-500.0,0.00012083,2]
[348564205,1736620268361,-954.12,0.00012083,2]
[348564206,1736620268371,-150.0,0.00012083,2]
[348564207,1736620268381,-500.0,0.00012083,2]
[348564208,1736620268391,-217.120428,0.00012083,2]
[348564209,1736620268401,-622.38,0.00012083,2]
[348564210,1736620268411,-522.79,0.00012083,2]
[348564211,1736620268423,-2493.03,0.00012083,2]
[348564212,1736620268434,-500.0,0.00012083,2]
[348564213,1736620268444,-1215.65,0.00012083,2]
[348564214,1736620268454,-2849.11,0.00012083,2]
[348564215,1736620268464,-186.267351,0.00012083,2]
[348564216,1736620268475,-1952.06,0.00012083,2]
[348564217,1736620268484,-5755.78,0.00012083,2]
[348564218,1736620268494,-1304.79,0.00012083,2]
[348564219,1736620268503,-500.0,0.00012083,2]
[348564220,1736620268515,-818.64,0.00012083,2]
[348564221,1736620268525,-587.15,0.00012083,2]
[348564222,1736620268535,-500.0,0.00012083,2]
[348564223,1736620268545,-506.69,0.00012083,2]
[348564224,1736620268555,-1028.71,0.00012083,2]
[348564225,1736620268565,-235.74,0.00012083,2]
[348564226,1736620268575,-3008.65,0.00012083,2]
[348564227,1736620268585,-500.0,0.00012083,2]
[348564228,1736620268595,-2939.45,0.00012083,2]
[348564229,1736620268605,-584.79,0.00012083,2]
[348564230,1736620268615,-500.0,0.00012083,2]
[348564231,1736620268625,-377.29,0.00012083,2]
[348564232,1736620268635,-2813.01,0.00012083,2]
[348564233,1736620268645,-500.0,0.00012083,2]
[348564234,1736620268655,-2066.76,0.00012083,2]
[348564235,1736620268665,-1001.95,0.00012083,2]
[348564236,1736620268675,-230.00754292,0.00012083,2]
[348564237,1736620268685,-500.0,0.00012083,2]
[348564238,1736620268696,-500.0,0.00012083,2]
[348564239,1736620268706,-3166.08,0.00012083,2]
[348564240,1736620268716,-500.0,0.00012083,2]
[348564241,1736620268727,-2016.16,0.00012083,2]
[348564242,1736620268736,-349.87,0.00012083,2]
[348564243,1736620268746,-500.0,0.00012083,2]
[348564244,1736620268757,-1138.0,0.00012083,2]
[348564245,1736620268767,-500.0,0.00012083,2]
[348564246,1736620268778,-738.79,0.00012083,2]
[348564247,1736620268788,-500.0,0.00012084,2]
[348564248,1736620268799,-555.18,0.00012084,2]
[348564249,1736620268808,-500.0,0.00012084,2]
[348564250,1736620268818,-500.0,0.00012084,2]
[348564251,1736620268828,-500.0,0.00012084,2]
[348564252,1736620268839,-166.15,0.00012084,2]
[348564253,1736620268849,-500.0,0.00012084,2]
[348564254,1736620268859,-500.0,0.00012084,2]
[348564255,1736620268870,-500.0,0.00012084,2]
[348564256,1736620268879,-500.0,0.00012084,2]
[348564257,1736620268890,-500.0,0.00012084,2]
[348564258,1736620268900,-500.0,0.00012084,2]
[348564259,1736620268910,-500.0,0.00012084,2]
[348564260,1736620268922,-500.0,0.00012084,2]
[348564261,1736620268933,-500.0,0.00012084,2]
[348564262,1736620268943,-540.54,0.00012084,2]
[348564263,1736620268953,-612.39,0.00012084,2]
[348564264,1736620268965,-285.6312413,0.00012084,2]
[348564265,1736620269204,-214.3687587,0.00012084,2]
[348564266,1736620269215,-500.0,0.00012084,2]
[348564267,1736620269225,-500.0,0.00012084,2]
[348564268,1736620269236,-703.64,0.00012084,2]
[348564269,1736620269246,-500.0,0.00012084,2]
[348564270,1736620269255,-500.0,0.00012084,2]
[348564271,1736620269265,-500.0,0.00012084,2]
[348564272,1736620269275,-1024.51,0.00012084,2]
[348564273,1736620269285,-1100.94,0.00012085,2]
[348564274,1736620269296,-1523.13,0.00012085,2]
[348564275,1736620269305,-926.27,0.00012085,2]
[348564276,1736620269315,-1703.67,0.00012085,2]
[348564277,1736620269326,-1794.24,0.00012085,2]
[348564278,1736620269336,-2156.82,0.00012085,2]
[348564279,1736620269346,-1820.4,0.00012085,2]
[348564280,1736620269356,-2988.31,0.00012085,2]
[348564281,1736620269367,-1199.45,0.00012085,2]
[348564282,1736620269378,-1212.35,0.00012085,2]
[348564283,1736620269387,-944.58,0.00012085,2]
[348564284,1736620269398,-1372.48,0.00012085,2]
[348564285,1736620269408,-1189.63,0.00012085,2]
[348564286,1736620269417,-708.76,0.00012085,2]
[348564287,1736620269428,-2583.19,0.00012085,2]
[348564288,1736620269438,-150.0,0.00012091,2]
[348564289,1736620269448,-208.76349431,0.00012111,2]
[348564290,1736620269459,-150.0,0.00012113,2]
[348564291,1736620269469,-791.84950131,0.00012116,2]
[348564292,1736620269479,-150.0,0.00012119,2]
[348564293,1736620269489,-150.0,0.00012127,2]
[348564294,1736620269704,-150.0,0.00012131,2]
[348564295,1736620269726,-150.0,0.00012135,2]
[348564296,1736620269736,-150.0,0.00012146,2]
[348564297,1736620269746,-481.97640837,0.0001215,8]
[348564298,1736620270032,-273.75776622,0.00010164,2]
[348564299,1736620270044,-226.24223378,0.00010164,2]
[348564300,1736620270054,-500.0,0.00010165,2]
[348564301,1736620270064,-502.24322802,0.00010165,2]
[348564302,1736620270073,-500.0,0.00010265,2]
[348564303,1736620270083,-500.0,0.00010265,2]
[348564304,1736620270093,-500.0,0.00010265,2]
[348564305,1736620270103,-500.0,0.00010438,2]
[348564306,1736620270112,-500.0,0.00010439,2]
[348564307,1736620270122,-576.88256683,0.00010712,2]
[348564308,1736620270131,-500.0,0.00010713,2]
[348564309,1736620270141,-500.0,0.00010715,2]
[348564310,1736620270151,-393.79761375,0.00010987,2]
[348564311,1736620270160,-260.92,0.00010989,2]
[348564312,1736620270170,-2514.18067626,0.00011,2]
[348564313,1736620270180,-3135.91157356,0.0001215,8]
[348564314,1736620270192,-13583.9176894,0.0001215,8]
[348564315,1736620270202,-150.0,0.00012158,2]
[348564316,1736620270211,-150.0,0.00012173,2]
[348564317,1736620270221,-8469.98920169,0.0001218,2]
[348564318,1736620270231,-490.20918739,0.00012183,2]
[348564319,1736620270244,-627.84,0.00012183,2]
[348564320,1736620270253,-500.0,0.00012183,2]
[348564321,1736620270263,-500.0,0.00012183,2]
[348564322,1736620270272,-500.0,0.00012183,2]
[348564323,1736620270283,-500.0,0.00012183,2]
[348564324,1736620270293,-500.0,0.00012183,2]
[348564325,1736620270302,-500.0,0.00012183,2]
[348564326,1736620270313,-500.0,0.00012183,2]
[348564327,1736620270323,-352.06,0.00012183,2]
[348564328,1736620270332,-618.36931295,0.00012183,2]
[348564329,1736620270342,-500.0,0.00012183,2]
[348564330,1736620270351,-500.0,0.00012183,2]
[348564331,1736620270361,-500.0,0.00012183,2]
[348564332,1736620270370,-500.0,0.00012183,2]
[348564333,1736620270381,-500.0,0.00012183,2]